[Event "Late-Titled-Tuesday-Blitz-October-24-2023"]
[Site "Chess.com"]
[Date "2023.10.24"]
[Round "11"]
[White "SanchezKelvin"]
[Black "hblanco"]
[Result "0-1"]
[WhiteElo "2560"]
[BlackElo "2724"]
[TimeControl "180+1"]
[EndTime "16:05:36 PDT"]
[Termination "hblanco won on time"]

1. e4 {[%clk 0:02:47.1]} 1... c5 {[%clk 0:03:00.1]} 2. Nf3 {[%clk 0:02:47]} 2...
Nc6 {[%clk 0:03:00.7]} 3. d4 {[%clk 0:02:47.7]} 3... cxd4 {[%clk 0:03:01.5]} 4.
Nxd4 {[%clk 0:02:48.3]} 4... g6 {[%clk 0:03:02.2]} 5. Nc3 {[%clk 0:02:48.4]}
5... Bg7 {[%clk 0:03:02.8]} 6. Be3 {[%clk 0:02:48]} 6... Nf6 {[%clk 0:03:03.3]}
7. Bc4 {[%clk 0:02:48]} 7... Qa5 {[%clk 0:03:04]} 8. Nb3 {[%clk 0:02:46.6]} 8...
Qb4 {[%clk 0:03:00.5]} 9. Bd3 {[%clk 0:02:45]} 9... Nxe4 {[%clk 0:02:59.6]} 10.
Bxe4 {[%clk 0:02:34.7]} 10... Bxc3+ {[%clk 0:02:57.9]} 11. bxc3 {[%clk
0:02:35.6]} 11... Qxe4 {[%clk 0:02:57.9]} 12. O-O {[%clk 0:02:36.1]} 12... O-O
{[%clk 0:02:54.9]} 13. Re1 {[%clk 0:02:28.8]} 13... Qc4 {[%clk 0:02:51.6]} 14.
Qd2 {[%clk 0:01:55.8]} 14... d6 {[%clk 0:02:50.1]} 15. Bh6 {[%clk 0:01:49.6]}
15... Re8 {[%clk 0:02:49.5]} 16. Qxd6 {[%clk 0:01:47.8]} 16... Qxc3 {[%clk
0:02:29.9]} 17. Rad1 {[%clk 0:01:42.9]} 17... Bf5 {[%clk 0:02:27.2]} 18. Qc7
{[%clk 0:01:38.2]} 18... b6 {[%clk 0:02:08.1]} 19. Re3 {[%clk 0:01:00.3]} 19...
Qc4 {[%clk 0:02:07.6]} 20. c3 {[%clk 0:00:33.1]} 20... Rac8 {[%clk 0:02:06.3]}
21. Qg3 {[%clk 0:00:30.9]} 21... Qg4 {[%clk 0:02:04.7]} 22. Qxg4 {[%clk
0:00:30]} 22... Bxg4 {[%clk 0:02:05.6]} 23. Rd2 {[%clk 0:00:28.1]} 23... Be6
{[%clk 0:02:03.7]} 24. f3 {[%clk 0:00:27]} 24... Bxb3 {[%clk 0:02:02.7]} 25.
axb3 {[%clk 0:00:26.9]} 25... Rc7 {[%clk 0:02:02.1]} 26. Bf4 {[%clk 0:00:26.3]}
26... e5 {[%clk 0:02:01.6]} 27. Bg3 {[%clk 0:00:26.8]} 27... f6 {[%clk
0:02:01.5]} 28. Red3 {[%clk 0:00:27.1]} 28... Kf7 {[%clk 0:02:00.5]} 29. h4
{[%clk 0:00:24.8]} 29... h6 {[%clk 0:01:59.9]} 30. Rd6 {[%clk 0:00:22]} 30...
Re6 {[%clk 0:01:59.5]} 31. Rd7+ {[%clk 0:00:21.7]} 31... Re7 {[%clk 0:02:00.1]}
32. R7d6 {[%clk 0:00:19.6]} 32... g5 {[%clk 0:01:59.6]} 33. hxg5 {[%clk
0:00:19.2]} 33... hxg5 {[%clk 0:02:00.5]} 34. Bf2 {[%clk 0:00:19.2]} 34... Na5
{[%clk 0:02:00.5]} 35. Rb2 {[%clk 0:00:16.9]} 35... Rxc3 {[%clk 0:01:59.7]} 36.
Be1 {[%clk 0:00:14.4]} 36... Rxb3 {[%clk 0:01:59]} 37. Ra2 {[%clk 0:00:14.8]}
37... Rb1 {[%clk 0:01:58.2]} 38. Kf2 {[%clk 0:00:14.5]} 38... Nc4 {[%clk
0:01:58.6]} 39. Rd3 {[%clk 0:00:13.8]} 39... b5 {[%clk 0:01:55.7]} 40. Rd8
{[%clk 0:00:07.8]} 40... a5 {[%clk 0:01:51.4]} 41. Bxa5 {[%clk 0:00:07.3]} 41...
Ra7 {[%clk 0:01:50.9]} 0-1

[Event "Late-Titled-Tuesday-Blitz-October-24-2023"]
[Site "Chess.com"]
[Date "2023.10.24"]
[Round "11"]
[White "Bauman_Guy"]
[Black "FedaMaster"]
[Result "1-0"]
[WhiteElo "2918"]
[BlackElo "2686"]
[TimeControl "180+1"]
[EndTime "16:05:37 PDT"]
[Termination "Bauman_Guy won by resignation"]

1. e4 {[%clk 0:03:00.9]} 1... d5 {[%clk 0:02:59.9]} 2. exd5 {[%clk 0:03:00.8]}
2... Qxd5 {[%clk 0:03:00.8]} 3. Nc3 {[%clk 0:03:01]} 3... Qd6 {[%clk 0:03:01.5]}
4. d4 {[%clk 0:03:01]} 4... Nf6 {[%clk 0:03:02.1]} 5. Nf3 {[%clk 0:03:01.6]}
5... Bg4 {[%clk 0:03:02.6]} 6. h3 {[%clk 0:03:02.1]} 6... Bh5 {[%clk 0:03:03]}
7. g3 {[%clk 0:03:01.8]} 7... Nc6 {[%clk 0:02:59.8]} 8. Bg2 {[%clk 0:02:57.8]}
8... O-O-O {[%clk 0:02:52.2]} 9. Be3 {[%clk 0:02:56.1]} 9... e5 {[%clk
0:01:53.8]} 10. dxe5 {[%clk 0:02:45.5]} 10... Nxe5 {[%clk 0:01:49.2]} 11. Qxd6
{[%clk 0:02:36.9]} 11... Bxd6 {[%clk 0:01:50.1]} 12. g4 {[%clk 0:02:36.7]} 12...
Nxf3+ {[%clk 0:01:47.8]} 13. Bxf3 {[%clk 0:02:37.6]} 13... Bg6 {[%clk
0:01:48.5]} 14. O-O-O {[%clk 0:02:37.6]} 14... a6 {[%clk 0:01:36.9]} 15. Nd5
{[%clk 0:02:30.3]} 15... Be4 {[%clk 0:01:14.1]} 16. Bxe4 {[%clk 0:02:25.9]}
16... Nxe4 {[%clk 0:01:15]} 17. f3 {[%clk 0:02:26.3]} 17... Ng3 {[%clk
0:01:10.2]} 18. Rhe1 {[%clk 0:02:25.8]} 18... Rhe8 {[%clk 0:01:00.8]} 19. c4
{[%clk 0:02:14.9]} 19... c6 {[%clk 0:00:44.9]} 20. Nb6+ {[%clk 0:02:09.8]} 20...
Kb8 {[%clk 0:00:36.1]} 21. Kc2 {[%clk 0:01:59.8]} 21... Bc7 {[%clk 0:00:33]} 22.
Rxd8+ {[%clk 0:01:46.1]} 22... Rxd8 {[%clk 0:00:33.9]} 23. Bf2 {[%clk
0:01:44.9]} 23... Bf4 {[%clk 0:00:19.5]} 24. Bc5 {[%clk 0:01:23.6]} 24... Rd2+
{[%clk 0:00:14.8]} 25. Kb1 {[%clk 0:01:23.8]} 25... Re2 {[%clk 0:00:12.1]} 26.
Rd1 {[%clk 0:01:21.2]} 26... Rd2 {[%clk 0:00:12.2]} 27. Rxd2 {[%clk 0:01:20.2]}
27... Bxd2 {[%clk 0:00:13.1]} 28. Bd6+ {[%clk 0:01:20.8]} 28... Ka7 {[%clk
0:00:12.2]} 29. Nc8+ {[%clk 0:01:21.5]} 29... Ka8 {[%clk 0:00:12.4]} 30. Bxg3
{[%clk 0:01:22]} 30... Be1 {[%clk 0:00:12.2]} 31. Bxe1 {[%clk 0:01:21.8]} 1-0

[Event "Late-Titled-Tuesday-Blitz-October-24-2023"]
[Site "Chess.com"]
[Date "2023.10.24"]
[Round "11"]
[White "shimastream"]
[Black "Krakozia"]
[Result "0-1"]
[WhiteElo "2972"]
[BlackElo "2959"]
[TimeControl "180+1"]
[EndTime "16:05:42 PDT"]
[Termination "Krakozia won on time"]

1. d4 {[%clk 0:03:00.9]} 1... Nf6 {[%clk 0:02:59.1]} 2. Bg5 {[%clk 0:03:00.7]}
2... d5 {[%clk 0:02:58.7]} 3. Nd2 {[%clk 0:03:00.1]} 3... c5 {[%clk 0:02:57.8]}
4. dxc5 {[%clk 0:02:54.1]} 4... e6 {[%clk 0:02:57.6]} 5. e4 {[%clk 0:02:54.7]}
5... Bxc5 {[%clk 0:02:56.1]} 6. Qe2 {[%clk 0:02:55.2]} 6... dxe4 {[%clk
0:02:43.3]} 7. O-O-O {[%clk 0:02:49.7]} 7... Be7 {[%clk 0:02:01.5]} 8. Nxe4
{[%clk 0:02:48.7]} 8... Qc7 {[%clk 0:01:57.9]} 9. Nf3 {[%clk 0:02:43.1]} 9...
Nc6 {[%clk 0:01:55.9]} 10. Kb1 {[%clk 0:02:40.1]} 10... Bd7 {[%clk 0:01:53.3]}
11. Nxf6+ {[%clk 0:02:36.9]} 11... gxf6 {[%clk 0:01:52.5]} 12. Be3 {[%clk
0:02:36]} 12... e5 {[%clk 0:01:47.6]} 13. Nh4 {[%clk 0:02:11.4]} 13... O-O-O
{[%clk 0:01:47]} 14. g4 {[%clk 0:01:42.1]} 14... Be6 {[%clk 0:01:46.1]} 15. Bg2
{[%clk 0:01:33.4]} 15... Qa5 {[%clk 0:01:34.9]} 16. a3 {[%clk 0:01:23.2]} 16...
Bxa3 {[%clk 0:01:28]} 17. bxa3 {[%clk 0:01:24.1]} 17... Qxa3 {[%clk 0:01:27.7]}
18. c4 {[%clk 0:01:18.9]} 18... Qb3+ {[%clk 0:01:26.3]} 19. Ka1 {[%clk
0:01:02.4]} 19... Bxc4 {[%clk 0:01:19.6]} 20. Rxd8+ {[%clk 0:00:23.5]} 20...
Rxd8 {[%clk 0:01:20.5]} 21. Qb2 {[%clk 0:00:23.3]} 21... Qa4+ {[%clk 0:01:16.8]}
22. Kb1 {[%clk 0:00:23.9]} 22... Rd3 {[%clk 0:01:13.3]} 23. Bxc6 {[%clk
0:00:01.8]} 23... bxc6 {[%clk 0:01:12]} 0-1

[Event "Late-Titled-Tuesday-Blitz-October-24-2023"]
[Site "Chess.com"]
[Date "2023.10.24"]
[Round "11"]
[White "koncheto"]
[Black "IlanSchnaider"]
[Result "1-0"]
[WhiteElo "2586"]
[BlackElo "2731"]
[TimeControl "180+1"]
[EndTime "16:05:43 PDT"]
[Termination "koncheto won by resignation"]

1. e4 {[%clk 0:03:00.9]} 1... e5 {[%clk 0:02:59.6]} 2. Nf3 {[%clk 0:03:00.7]}
2... Nc6 {[%clk 0:03:00.2]} 3. Bc4 {[%clk 0:02:59.6]} 3... Nf6 {[%clk
0:03:00.1]} 4. d3 {[%clk 0:03:00]} 4... Bc5 {[%clk 0:02:59.3]} 5. O-O {[%clk
0:02:58.8]} 5... d6 {[%clk 0:02:59.4]} 6. c3 {[%clk 0:02:59.3]} 6... a6 {[%clk
0:02:58]} 7. Bb3 {[%clk 0:02:59.3]} 7... Ba7 {[%clk 0:02:58]} 8. Nbd2 {[%clk
0:02:59.5]} 8... h6 {[%clk 0:02:58.1]} 9. Nc4 {[%clk 0:02:54.5]} 9... O-O {[%clk
0:02:54]} 10. Re1 {[%clk 0:02:51]} 10... Be6 {[%clk 0:02:52.4]} 11. Be3 {[%clk
0:02:46.5]} 11... Qd7 {[%clk 0:02:51.7]} 12. Bxa7 {[%clk 0:02:46.1]} 12... Rxa7
{[%clk 0:02:52.6]} 13. d4 {[%clk 0:02:38.7]} 13... exd4 {[%clk 0:02:50.1]} 14.
Nxd4 {[%clk 0:02:30.1]} 14... Bxc4 {[%clk 0:02:20]} 15. Bxc4 {[%clk 0:02:25]}
15... Ne5 {[%clk 0:02:20.5]} 16. Bb3 {[%clk 0:02:14.7]} 16... g6 {[%clk
0:02:19.7]} 17. f4 {[%clk 0:02:11.9]} 17... Nc6 {[%clk 0:02:16.5]} 18. Kh1
{[%clk 0:02:01.5]} 18... Re8 {[%clk 0:02:07.7]} 19. Nxc6 {[%clk 0:02:00.5]}
19... bxc6 {[%clk 0:02:05]} 20. Qd4 {[%clk 0:02:00.5]} 20... Nh5 {[%clk
0:01:06]} 21. Qxa7 {[%clk 0:01:55.5]} 21... c5 {[%clk 0:01:06.7]} 22. Rf1 {[%clk
0:01:29.3]} 22... Nf6 {[%clk 0:00:35.2]} 23. e5 {[%clk 0:01:24.1]} 23... Qc6
{[%clk 0:00:23.3]} 24. exf6 {[%clk 0:01:22.2]} 24... Ra8 {[%clk 0:00:22.6]} 25.
Ba4 {[%clk 0:01:22.6]} 25... Qe4 {[%clk 0:00:14.1]} 26. Rae1 {[%clk 0:01:10.8]}
26... Qxe1 {[%clk 0:00:10.2]} 27. Qxa8+ {[%clk 0:01:10.2]} 27... Qe8 {[%clk
0:00:10.9]} 28. Qxe8+ {[%clk 0:01:09.9]} 1-0

[Event "Late-Titled-Tuesday-Blitz-October-24-2023"]
[Site "Chess.com"]
[Date "2023.10.24"]
[Round "11"]
[White "SpeedofLight0"]
[Black "dennisodessa"]
[Result "1-0"]
[WhiteElo "2957"]
[BlackElo "2576"]
[TimeControl "180+1"]
[EndTime "16:05:56 PDT"]
[Termination "SpeedofLight0 won by resignation"]

1. d4 {[%clk 0:02:57.1]} 1... Nf6 {[%clk 0:02:58.9]} 2. b3 {[%clk 0:02:55.4]}
2... d5 {[%clk 0:02:54.9]} 3. Nf3 {[%clk 0:02:53.6]} 3... Bf5 {[%clk 0:02:52.6]}
4. e3 {[%clk 0:02:53.1]} 4... h6 {[%clk 0:02:49]} 5. c4 {[%clk 0:02:53]} 5... c6
{[%clk 0:02:48.3]} 6. Be2 {[%clk 0:02:52.3]} 6... Nbd7 {[%clk 0:02:48.2]} 7. O-O
{[%clk 0:02:52.9]} 7... e6 {[%clk 0:02:48.5]} 8. Nc3 {[%clk 0:02:53.3]} 8... Bd6
{[%clk 0:02:48.9]} 9. a4 {[%clk 0:02:51.7]} 9... O-O {[%clk 0:02:49]} 10. Ba3
{[%clk 0:02:51.6]} 10... Bxa3 {[%clk 0:02:46.9]} 11. Rxa3 {[%clk 0:02:52.5]}
11... Qe7 {[%clk 0:02:46.8]} 12. Ra1 {[%clk 0:02:51.5]} 12... dxc4 {[%clk
0:02:40.5]} 13. Bxc4 {[%clk 0:02:45.1]} 13... e5 {[%clk 0:02:40.6]} 14. Re1
{[%clk 0:02:40.9]} 14... Ne4 {[%clk 0:02:32.7]} 15. Qd3 {[%clk 0:02:31.5]} 15...
Nd6 {[%clk 0:02:24.5]} 16. e4 {[%clk 0:02:31.5]} 16... Bh7 {[%clk 0:02:24.9]}
17. Re2 {[%clk 0:02:25.5]} 17... Nxc4 {[%clk 0:02:19.8]} 18. Qxc4 {[%clk
0:02:25.4]} 18... exd4 {[%clk 0:02:13.3]} 19. Qxd4 {[%clk 0:02:25.6]} 19... Rfd8
{[%clk 0:02:12.8]} 20. Qe3 {[%clk 0:02:20.4]} 20... Nc5 {[%clk 0:02:11.5]} 21.
Nd4 {[%clk 0:02:20.7]} 21... Rxd4 {[%clk 0:02:07.9]} 22. Qxd4 {[%clk 0:02:21.6]}
22... Nxb3 {[%clk 0:02:08.4]} 23. Qd1 {[%clk 0:02:19.5]} 23... Nxa1 {[%clk
0:02:08.3]} 24. Qxa1 {[%clk 0:02:20.4]} 24... Rd8 {[%clk 0:02:05.1]} 25. h3
{[%clk 0:02:18.2]} 25... Qe5 {[%clk 0:01:53.8]} 26. Qc1 {[%clk 0:02:17.4]} 26...
Rd3 {[%clk 0:01:51.1]} 27. Re3 {[%clk 0:02:17.6]} 27... Qd4 {[%clk 0:01:22.2]}
28. Rxd3 {[%clk 0:02:03.7]} 28... Qxd3 {[%clk 0:01:23.1]} 29. f3 {[%clk
0:02:03.9]} 29... f5 {[%clk 0:01:21.2]} 30. exf5 {[%clk 0:01:54.1]} 30... Bxf5
{[%clk 0:01:22.1]} 31. Qb2 {[%clk 0:01:53.6]} 31... Qd4+ {[%clk 0:01:06.3]} 32.
Kh1 {[%clk 0:01:52.6]} 32... a5 {[%clk 0:00:43.8]} 33. Qb3+ {[%clk 0:01:51.5]}
33... Kh7 {[%clk 0:00:43.6]} 34. Ne2 {[%clk 0:01:44.9]} 34... Qb4 {[%clk
0:00:43]} 35. Qf7 {[%clk 0:01:44.9]} 35... Bg6 {[%clk 0:00:43.3]} 36. Qd7 {[%clk
0:01:43.8]} 36... Qxa4 {[%clk 0:00:32.5]} 37. Kh2 {[%clk 0:01:40.7]} 37... Qb5
{[%clk 0:00:28.5]} 38. Nd4 {[%clk 0:01:28]} 38... Qe5+ {[%clk 0:00:27.8]} 39.
Kh1 {[%clk 0:01:28.1]} 39... a4 {[%clk 0:00:25.7]} 40. Ne6 {[%clk 0:01:28]}
40... Bf7 {[%clk 0:00:12.2]} 41. Qxf7 {[%clk 0:01:27]} 1-0

[Event "Late-Titled-Tuesday-Blitz-October-24-2023"]
[Site "Chess.com"]
[Date "2023.10.24"]
[Round "11"]
[White "katharinareinecke"]
[Black "protectiago"]
[Result "0-1"]
[WhiteElo "1884"]
[BlackElo "2052"]
[TimeControl "180+1"]
[EndTime "16:06:07 PDT"]
[Termination "protectiago won by checkmate"]

1. d4 {[%clk 0:03:00]} 1... Nf6 {[%clk 0:02:59.6]} 2. c4 {[%clk 0:03:00]} 2...
g6 {[%clk 0:02:59.7]} 3. Nf3 {[%clk 0:03:00.5]} 3... Bg7 {[%clk 0:02:59.4]} 4.
g3 {[%clk 0:03:00.8]} 4... O-O {[%clk 0:02:59.6]} 5. Bg2 {[%clk 0:03:01.4]} 5...
c6 {[%clk 0:02:59.7]} 6. O-O {[%clk 0:03:01.3]} 6... d5 {[%clk 0:03:00.2]} 7.
Nc3 {[%clk 0:02:57.5]} 7... Be6 {[%clk 0:02:59.1]} 8. cxd5 {[%clk 0:02:55.8]}
8... Nxd5 {[%clk 0:02:58.1]} 9. e4 {[%clk 0:02:53.6]} 9... Nxc3 {[%clk 0:02:58]}
10. bxc3 {[%clk 0:02:53.5]} 10... Qd7 {[%clk 0:02:51.4]} 11. a4 {[%clk
0:02:30.7]} 11... Bh3 {[%clk 0:02:50.3]} 12. Ba3 {[%clk 0:02:27.8]} 12... Bxg2
{[%clk 0:02:49.9]} 13. Kxg2 {[%clk 0:02:27.3]} 13... Rd8 {[%clk 0:02:50.2]} 14.
Rb1 {[%clk 0:02:23.2]} 14... Qc7 {[%clk 0:02:38.9]} 15. Qb3 {[%clk 0:02:16.5]}
15... b6 {[%clk 0:02:37.1]} 16. a5 {[%clk 0:02:07.9]} 16... b5 {[%clk
0:02:30.7]} 17. Bb4 {[%clk 0:01:58]} 17... Na6 {[%clk 0:02:30.5]} 18. Rfd1
{[%clk 0:01:42]} 18... c5 {[%clk 0:02:26.9]} 19. dxc5 {[%clk 0:01:36.7]} 19...
Nxc5 {[%clk 0:02:26.9]} 20. Bxc5 {[%clk 0:01:29.6]} 20... Qxc5 {[%clk
0:02:27.3]} 21. Rxd8+ {[%clk 0:01:13.7]} 21... Rxd8 {[%clk 0:02:26.7]} 22. Qxb5
{[%clk 0:01:13.8]} 22... Qxc3 {[%clk 0:02:20.8]} 23. a6 {[%clk 0:01:12.6]} 23...
Rd3 {[%clk 0:01:55.3]} 24. Ne1 {[%clk 0:00:58.4]} 24... Rd8 {[%clk 0:01:45.5]}
25. Qb7 {[%clk 0:00:54.4]} 25... Bd4 {[%clk 0:01:38.5]} 26. Qxe7 {[%clk
0:00:49.2]} 26... Rf8 {[%clk 0:01:30.7]} 27. Rb7 {[%clk 0:00:42.3]} 27... Qxe1
{[%clk 0:01:26.6]} 28. e5 {[%clk 0:00:31]} 28... Qxf2+ {[%clk 0:01:25.6]} 29.
Kh3 {[%clk 0:00:30.3]} 29... Qf5+ {[%clk 0:01:22.5]} 30. Kg2 {[%clk 0:00:28.2]}
30... Bxe5 {[%clk 0:01:16.2]} 31. Rxa7 {[%clk 0:00:25.6]} 31... g5 {[%clk
0:01:06.7]} 32. Rb7 {[%clk 0:00:19.5]} 32... Qe4+ {[%clk 0:01:03]} 33. Kf1
{[%clk 0:00:17.6]} 33... Qf3+ {[%clk 0:01:00.2]} 34. Ke1 {[%clk 0:00:16.9]}
34... Bc3# {[%clk 0:00:58.9]} 0-1

[Event "Late-Titled-Tuesday-Blitz-October-24-2023"]
[Site "Chess.com"]
[Date "2023.10.24"]
[Round "11"]
[White "Gogolev_Artemy"]
[Black "meoluoi91"]
[Result "1-0"]
[WhiteElo "2450"]
[BlackElo "2590"]
[TimeControl "180+1"]
[EndTime "16:06:12 PDT"]
[Termination "Gogolev_Artemy won by resignation"]

1. d4 {[%clk 0:03:00.9]} 1... d5 {[%clk 0:03:00.2]} 2. Nf3 {[%clk 0:03:00]} 2...
Nf6 {[%clk 0:03:00.1]} 3. c4 {[%clk 0:03:00.3]} 3... c6 {[%clk 0:03:00.3]} 4.
Qc2 {[%clk 0:02:59.3]} 4... g6 {[%clk 0:02:58]} 5. Bf4 {[%clk 0:02:58.7]} 5...
dxc4 {[%clk 0:02:56.2]} 6. Qxc4 {[%clk 0:02:51.9]} 6... Bf5 {[%clk 0:02:54.9]}
7. Nc3 {[%clk 0:02:49.1]} 7... Bg7 {[%clk 0:02:53.9]} 8. e3 {[%clk 0:02:48.9]}
8... Qa5 {[%clk 0:02:47.7]} 9. Be2 {[%clk 0:02:35.9]} 9... b5 {[%clk 0:02:34]}
10. Qb3 {[%clk 0:02:34.9]} 10... b4 {[%clk 0:02:28.1]} 11. Na4 {[%clk
0:02:30.5]} 11... Be6 {[%clk 0:02:26.8]} 12. Qd1 {[%clk 0:02:22.9]} 12... Nd5
{[%clk 0:02:21]} 13. O-O {[%clk 0:02:10.6]} 13... Nxf4 {[%clk 0:02:19.6]} 14.
exf4 {[%clk 0:02:11.5]} 14... Nd7 {[%clk 0:02:19.6]} 15. Ne5 {[%clk 0:02:07.5]}
15... Nxe5 {[%clk 0:02:08.8]} 16. dxe5 {[%clk 0:01:59.2]} 16... O-O {[%clk
0:02:08.8]} 17. b3 {[%clk 0:01:55.7]} 17... c5 {[%clk 0:02:01.1]} 18. Rc1 {[%clk
0:01:52.3]} 18... Rac8 {[%clk 0:02:01.1]} 19. Bc4 {[%clk 0:01:50]} 19... Rfd8
{[%clk 0:01:59.2]} 20. Qe2 {[%clk 0:01:48.4]} 20... Bxc4 {[%clk 0:01:24.8]} 21.
Rxc4 {[%clk 0:01:49.3]} 21... e6 {[%clk 0:01:22.4]} 22. Rfc1 {[%clk 0:01:48.9]}
22... Bf8 {[%clk 0:01:21.4]} 23. h4 {[%clk 0:01:42.2]} 23... h5 {[%clk 0:01:20]}
24. g4 {[%clk 0:01:37.1]} 24... hxg4 {[%clk 0:01:18.2]} 25. Qxg4 {[%clk
0:01:38]} 25... Kg7 {[%clk 0:00:31.9]} 26. h5 {[%clk 0:01:36.6]} 26... Rc6
{[%clk 0:00:32.1]} 27. hxg6 {[%clk 0:01:35.2]} 27... fxg6 {[%clk 0:00:32.1]} 28.
Qg5 {[%clk 0:01:16.5]} 28... Rd5 {[%clk 0:00:31.7]} 29. Qf6+ {[%clk 0:01:14.4]}
29... Kg8 {[%clk 0:00:22.2]} 30. Qxg6+ {[%clk 0:01:10.1]} 30... Kh8 {[%clk
0:00:16.8]} 31. Kg2 {[%clk 0:01:07.6]} 31... Bg7 {[%clk 0:00:11.2]} 32. Qe8+
{[%clk 0:01:02.8]} 32... Kh7 {[%clk 0:00:11.3]} 33. Rh1+ {[%clk 0:01:02.8]}
33... Bh6 {[%clk 0:00:11.5]} 34. Qf7+ {[%clk 0:01:03.1]} 1-0

[Event "Late-Titled-Tuesday-Blitz-October-24-2023"]
[Site "Chess.com"]
[Date "2023.10.24"]
[Round "11"]
[White "Giorno"]
[Black "Nikita_Klepikov"]
[Result "1-0"]
[WhiteElo "2545"]
[BlackElo "2357"]
[TimeControl "180+1"]
[EndTime "16:06:12 PDT"]
[Termination "Giorno won on time"]

1. Nf3 {[%clk 0:02:55.7]} 1... Nf6 {[%clk 0:02:52.8]} 2. g3 {[%clk 0:02:51.8]}
2... g6 {[%clk 0:02:53.2]} 3. b3 {[%clk 0:02:51.3]} 3... Bg7 {[%clk 0:02:53.6]}
4. Bb2 {[%clk 0:02:52]} 4... O-O {[%clk 0:02:52.5]} 5. Bg2 {[%clk 0:02:52.4]}
5... d5 {[%clk 0:02:53.3]} 6. O-O {[%clk 0:02:50.2]} 6... c5 {[%clk 0:02:54]} 7.
e3 {[%clk 0:02:49.2]} 7... Nc6 {[%clk 0:02:54.4]} 8. d3 {[%clk 0:02:47.2]} 8...
Qd6 {[%clk 0:02:44.1]} 9. Nbd2 {[%clk 0:02:45.1]} 9... e5 {[%clk 0:02:43.4]} 10.
e4 {[%clk 0:02:45.7]} 10... Be6 {[%clk 0:02:42]} 11. exd5 {[%clk 0:02:45.1]}
11... Bxd5 {[%clk 0:02:42.9]} 12. Re1 {[%clk 0:02:44.7]} 12... Rfe8 {[%clk
0:02:42.8]} 13. Nc4 {[%clk 0:02:42.5]} 13... Bxc4 {[%clk 0:02:40.1]} 14. bxc4
{[%clk 0:02:43.4]} 14... Rab8 {[%clk 0:02:38.3]} 15. Nd2 {[%clk 0:02:33.9]}
15... Nd4 {[%clk 0:02:32.3]} 16. Ne4 {[%clk 0:02:30.7]} 16... Nxe4 {[%clk
0:02:25.7]} 17. Bxe4 {[%clk 0:02:31.6]} 17... f5 {[%clk 0:02:20.9]} 18. Bd5+
{[%clk 0:02:31.7]} 18... Kh8 {[%clk 0:02:20.8]} 19. Bxd4 {[%clk 0:02:28.7]}
19... cxd4 {[%clk 0:02:13.6]} 20. a4 {[%clk 0:02:28.2]} 20... a6 {[%clk
0:01:48.8]} 21. Rb1 {[%clk 0:02:24.1]} 21... b5 {[%clk 0:01:46.4]} 22. axb5
{[%clk 0:02:24.1]} 22... axb5 {[%clk 0:01:47.3]} 23. Qf3 {[%clk 0:02:17.4]}
23... bxc4 {[%clk 0:01:27]} 24. Bxc4 {[%clk 0:02:11.5]} 24... Rxb1 {[%clk
0:01:22]} 25. Rxb1 {[%clk 0:02:12.4]} 25... e4 {[%clk 0:01:22.4]} 26. dxe4
{[%clk 0:02:10.1]} 26... fxe4 {[%clk 0:01:23.3]} 27. Qf7 {[%clk 0:02:08.2]}
27... Rf8 {[%clk 0:01:20.7]} 28. Qe6 {[%clk 0:02:03.8]} 28... Qc5 {[%clk
0:00:43.7]} 29. Qd5 {[%clk 0:02:01.2]} 29... Qxd5 {[%clk 0:00:25.6]} 30. Bxd5
{[%clk 0:02:02.1]} 30... e3 {[%clk 0:00:24.9]} 31. f4 {[%clk 0:01:59.4]} 31...
g5 {[%clk 0:00:20.6]} 32. fxg5 {[%clk 0:01:52.6]} 32... d3 {[%clk 0:00:14.6]}
33. cxd3 {[%clk 0:01:47.3]} 33... Bd4 {[%clk 0:00:13]} 34. Kg2 {[%clk
0:01:38.3]} 34... Rf2+ {[%clk 0:00:08]} 35. Kh3 {[%clk 0:01:38.1]} 35... Kg7
{[%clk 0:00:07.6]} 36. Rb7+ {[%clk 0:01:24.3]} 36... Kg6 {[%clk 0:00:06.2]} 37.
Kg4 {[%clk 0:01:19.1]} 37... e2 {[%clk 0:00:02.9]} 38. Be4+ {[%clk 0:01:15.3]}
1-0

[Event "Late-Titled-Tuesday-Blitz-October-24-2023"]
[Site "Chess.com"]
[Date "2023.10.24"]
[Round "11"]
[White "NMJeevanK"]
[Black "mbojan"]
[Result "1-0"]
[WhiteElo "2599"]
[BlackElo "2742"]
[TimeControl "180+1"]
[EndTime "16:06:19 PDT"]
[Termination "NMJeevanK won by checkmate"]

1. e4 {[%clk 0:03:00.9]} 1... g6 {[%clk 0:03:00.3]} 2. d4 {[%clk 0:03:00.1]}
2... Bg7 {[%clk 0:03:01]} 3. Nc3 {[%clk 0:03:00.7]} 3... d6 {[%clk 0:03:01.3]}
4. Be3 {[%clk 0:03:00.7]} 4... a6 {[%clk 0:03:01.7]} 5. g4 {[%clk 0:03:00.5]}
5... Nd7 {[%clk 0:03:00.8]} 6. h4 {[%clk 0:02:59.6]} 6... h5 {[%clk 0:03:00.8]}
7. gxh5 {[%clk 0:02:58.1]} 7... Rxh5 {[%clk 0:03:01.7]} 8. Bg2 {[%clk
0:02:58.4]} 8... Ngf6 {[%clk 0:02:57.9]} 9. Bf3 {[%clk 0:02:48]} 9... Rh8 {[%clk
0:02:57.3]} 10. Qd2 {[%clk 0:02:45.7]} 10... Nh5 {[%clk 0:02:54.2]} 11. O-O-O
{[%clk 0:02:44.2]} 11... e5 {[%clk 0:02:54.5]} 12. Bg5 {[%clk 0:02:41.2]} 12...
f6 {[%clk 0:02:52.1]} 13. Be3 {[%clk 0:02:37.2]} 13... c6 {[%clk 0:02:51.3]} 14.
Nge2 {[%clk 0:02:33.2]} 14... Qe7 {[%clk 0:02:37.4]} 15. Ng3 {[%clk 0:02:29.6]}
15... Nf4 {[%clk 0:02:18.5]} 16. h5 {[%clk 0:02:22.5]} 16... Nf8 {[%clk
0:02:02.6]} 17. Rdg1 {[%clk 0:02:05]} 17... g5 {[%clk 0:02:01.3]} 18. Bxf4
{[%clk 0:01:52]} 18... gxf4 {[%clk 0:01:58.9]} 19. h6 {[%clk 0:01:50.1]} 19...
fxg3 {[%clk 0:01:24.4]} 20. Bh5+ {[%clk 0:01:46]} 20... Kd8 {[%clk 0:01:16.8]}
21. hxg7 {[%clk 0:01:46.3]} 21... Qxg7 {[%clk 0:01:17]} 22. dxe5 {[%clk
0:01:43.7]} 22... fxe5 {[%clk 0:01:13.6]} 23. Qxd6+ {[%clk 0:01:41.3]} 23... Bd7
{[%clk 0:01:07.7]} 24. Kb1 {[%clk 0:01:27.7]} 24... Qe7 {[%clk 0:00:30.2]} 25.
Qxe7+ {[%clk 0:01:16.8]} 25... Kxe7 {[%clk 0:00:31.1]} 26. fxg3 {[%clk
0:01:12.3]} 26... Ne6 {[%clk 0:00:31.5]} 27. Bg6 {[%clk 0:01:08.1]} 27... Ng5
{[%clk 0:00:29.8]} 28. b3 {[%clk 0:00:52.5]} 28... Rxh1 {[%clk 0:00:20.8]} 29.
Rxh1 {[%clk 0:00:53.4]} 29... Rg8 {[%clk 0:00:18.2]} 30. Bf5 {[%clk 0:00:53.1]}
30... Bxf5 {[%clk 0:00:18.2]} 31. exf5 {[%clk 0:00:54]} 31... Kf6 {[%clk
0:00:18.7]} 32. g4 {[%clk 0:00:53.4]} 32... e4 {[%clk 0:00:17.1]} 33. Rh6+
{[%clk 0:00:47]} 33... Ke5 {[%clk 0:00:17.6]} 34. Ne2 {[%clk 0:00:47.3]} 34...
e3 {[%clk 0:00:16.9]} 35. c4 {[%clk 0:00:41.7]} 35... Ne4 {[%clk 0:00:17.2]} 36.
Re6# {[%clk 0:00:39.1]} 1-0